bitfinex-derivatives/quotes_ETHF0:USTF0_20250130
["timestamp","ask_amount","ask_price","bid_price","bid_amount"]
[1738220587278,44.0078,3191.3,3190.6,3.7163]
[1738220587872,0.62679,3191.0,3190.6,3.7163]
[1738220588077,0.62682,3190.9,3190.6,3.7163]
[1738220588275,0.62681,3190.9,3190.6,3.7163]
[1738220588772,0.62674,3191.2,3190.6,3.7163]
[1738220588978,0.62681,3190.9,3190.6,3.7163]
[1738220589677,44.0078,3191.3,3190.6,4.34316]
[1738220589678,0.62679,3191.0,3190.6,4.34316]
[1738220589877,44.0078,3191.3,3190.6,3.7163]
[1738220590080,0.62677,3191.1,3190.7,0.62683]
[1738220590474,0.62679,3191.0,3190.7,0.62683]
[1738220590879,0.62677,3191.1,3190.7,0.62683]
[1738220591781,0.62677,3191.1,3190.8,0.62682]
[1738220592381,0.62677,3191.1,3190.6,4.2424]
[1738220592581,0.62677,3191.1,3190.7,0.62683]
[1738220593682,0.62677,3191.1,3190.8,0.62682]
[1738220594479,44.0078,3191.3,3190.6,3.7163]
[1738220594689,0.62684,3190.7,3190.6,3.7163]
[1738220596787,0.62684,3190.7,3190.6,0.5085]
[1738220600798,0.6269,3190.5,3190.2,0.62693]
[1738220601092,0.6269,3190.5,3190.2,0.549]
[1738220601299,0.6269,3190.5,3190.2,1.17593]
[1738220601493,4.2209,3190.9,3190.2,0.549]
[1738220601694,4.2209,3190.9,3190.3,0.62691]
[1738220601986,0.62688,3190.5,3190.2,1.17593]
[1738220602189,0.62688,3190.6,3190.2,1.17593]
[1738220603603,4.2209,3190.9,3190.2,0.549]
[1738220603991,0.62691,3190.4,3190.2,0.549]
[1738220604186,0.62691,3190.4,3189.9,0.24945477]
[1738220604187,1.0666,3190.3,3189.9,0.24945477]
[1738220604497,1.0666,3190.3,3189.9,0.5345]
[1738220604498,0.62697,3190.1,3189.9,0.5345]
[1738220604689,0.62695,3190.2,3189.9,0.5345]
[1738220605193,1.0666,3190.3,3189.8,2.75223125]
[1738220605394,0.627,3190.0,3189.8,0.00470182]
[1738220605585,0.627,3189.9,3189.8,0.00470182]
[1738220606891,0.62699,3190.0,3189.8,0.00470182]
[1738220608406,1.0666,3190.3,3189.8,2.75223125]
[1738220608601,0.5442,3190.3,3190.1,3.37447943]
[1738220608903,0.62689,3190.5,3190.2,0.5124]
[1738220609204,0.62689,3190.5,3190.2,1.008]
[1738220609401,0.5187,3190.7,3190.4,2.74752943]
[1738220609589,3.7492,3190.9,3190.4,2.74752943]
[1738220609796,0.5431,3191.1,3190.8,0.62682]
[1738220609999,0.5431,3191.1,3190.7,5.95532943]
[1738220610493,0.5414,3191.3,3191.0,2.74752943]
[1738220610702,0.5414,3191.3,3191.1,0.4951]
[1738220611299,0.5431,3191.2,3191.1,0.4951]
[1738220611691,0.5414,3191.3,3191.1,0.4951]
[1738220611897,3.21250182,3191.4,3191.1,0.4951]
[1738220611898,0.00470182,3191.4,3191.3,0.62672]
[1738220612099,0.00470182,3191.4,3191.3,3.37424943]
[1738220617404,0.00660784,3191.4,3191.3,3.37424943]
[1738220619606,0.00660784,3191.4,3191.3,3.6222544]
[1738220625817,0.5443,3192.3,3191.8,0.62662]
[1738220625818,1.17084,3192.3,3191.8,0.62662]
[1738220626116,0.62655,3192.2,3191.9,3.80652943]
[1738220626410,1.17084,3192.3,3191.9,3.80652943]
[1738220626610,0.62655,3192.2,3191.9,3.80652943]
[1738220627306,0.62658,3192.1,3191.9,3.80652943]
[1738220628212,0.5443,3192.3,3191.9,3.80652943]
[1738220628605,0.62657,3192.1,3191.9,3.80652943]
[1738220630008,40.80470182,3192.4,3192.2,0.62654]
[1738220630212,0.6265,3192.5,3192.3,3.2078]
[1738220630611,40.8,3192.5,3192.3,3.2078]
[1738220630809,40.8,3192.5,3192.4,0.62651]
[1738220631013,0.5072,3192.6,3192.4,1.12461]
[1738220631215,0.5072,3192.6,3192.5,0.5368]
[1738220631719,41.3072,3192.6,3192.5,0.5368]
[1738220631910,41.3072,3192.6,3192.3,3.2078]
[1738220632117,0.62651,3192.4,3192.3,3.2078]
[1738220632616,0.5072,3192.6,3192.3,3.2078]
[1738220632919,41.4265,3192.5,3192.2,3.37405943]
[1738220633222,41.4265,3192.5,3192.3,0.62653]
[1738220633223,40.8,3192.5,3192.3,0.62653]
[1738220633418,40.8,3192.5,3192.4,0.62651]
[1738220633720,1.13368,3192.6,3192.3,0.62652]
[1738220634417,40.8,3192.5,3192.3,0.62652]
[1738220634611,40.8,3192.5,3192.3,0.62653]
[1738220635019,40.8,3192.5,3192.2,2.74752943]
[1738220635220,41.4265,3192.5,3192.2,3.37406943]
[1738220635417,40.8,3192.5,3192.2,2.74752943]
[1738220635617,0.62652,3192.4,3192.2,2.74752943]
[1738220636020,0.62652,3192.4,3191.9,4.2427]
[1738220636021,40.8,3192.5,3191.9,6.49212943]
[1738220636318,0.62656,3192.2,3191.9,6.49212943]
[1738220636720,0.5284,3192.1,3191.9,6.49212943]
[1738220637216,0.5284,3192.1,3191.9,7.11873943]
[1738220637920,0.5284,3192.1,3191.9,6.49212943]
[1738220638224,40.8,3192.5,3191.9,6.49212943]
[1738220638429,0.5072,3192.6,3192.4,5.95532943]
[1738220638616,0.5072,3192.6,3192.5,1.68989]
[1738220639616,0.5072,3192.6,3192.5,1.0634]
[1738220640017,0.5072,3192.6,3192.1,2.74752943]
[1738220640324,0.5072,3192.6,3192.0,3.2078]
[1738220640325,0.62649,3192.5,3192.0,3.2078]
[1738220640516,0.5072,3192.6,3192.0,3.2078]
[1738220640821,41.42652,3192.4,3192.1,2.74752943]
[1738220641214,0.5361,3192.3,3192.1,2.74752943]
[1738220641410,1.16263,3192.3,3192.1,2.74752943]
[1738220641820,0.5361,3192.3,3192.1,2.74752943]
[1738220642220,0.62655,3192.2,3192.1,2.74752943]
[1738220642428,1.16264,3192.3,3192.1,2.74752943]
[1738220643827,0.5361,3192.3,3192.1,2.74752943]
[1738220645129,0.5361,3192.3,3192.1,3.37408943]
[1738220645336,0.5361,3192.3,3192.1,2.74752943]
[1738220646627,0.5361,3192.3,3192.1,3.37408943]
[1738220647834,0.5361,3192.3,3192.1,3.37409943]
[1738220650533,0.5361,3192.3,3192.1,2.74752943]
[1738220650733,0.5072,3192.6,3192.4,0.6265]
[1738220651040,2.978,3192.7,3192.6,0.62647]
[1738220651529,0.00305978,3192.8,3192.7,0.62645]
[1738220651729,0.00305978,3192.8,3192.7,2.74752943]
[1738220652233,0.00305978,3192.8,3192.7,3.89937943]
[1738220655232,0.00305978,3192.8,3192.7,2.74752943]
[1738220655638,0.00305978,3192.8,3192.7,3.37397943]
[1738220656030,40.80305978,3192.8,3192.7,3.37397943]
[1738220656233,40.80305978,3192.8,3192.7,2.74752943]
[1738220656539,40.80305978,3192.8,3192.7,3.37397943]
[1738220658236,0.00305978,3192.8,3192.7,3.37397943]
[1738220661837,0.00305978,3192.8,3192.7,2.74752943]
[1738220662931,0.00305978,3192.8,3192.7,3.37397943]
[1738220663138,0.00305978,3192.8,3192.7,2.74752943]
[1738220663336,0.00305978,3192.8,3192.5,0.5021]
[1738220663535,0.62646,3192.7,3192.5,0.5021]
[1738220663731,0.5223,3192.6,3192.5,0.5021]
[1738220666041,0.5223,3192.6,3192.4,5.95532943]
[1738220666337,0.5457,3192.5,3192.4,5.95532943]
[1738220666638,1.17219,3192.5,3192.4,3.2078]
[1738220666834,1.17219,3192.5,3192.1,2.74752943]
[1738220666835,0.5457,3192.5,3192.1,2.74752943]
[1738220667034,0.62655,3192.3,3192.1,2.74752943]
[1738220669543,0.5457,3192.5,3192.1,2.74752943]
[1738220669747,0.62652,3192.4,3192.1,2.74752943]
[1738220669934,0.5457,3192.5,3192.1,2.74752943]
[1738220670135,0.62653,3192.3,3192.1,2.74752943]
[1738220671147,0.62652,3192.4,3192.1,2.74752943]
[1738220672542,0.62651,3192.4,3192.1,2.74752943]
[1738220673640,0.5457,3192.5,3191.8,3.7101]
[1738220673836,0.5457,3192.5,3191.8,6.45762943]
[1738220674037,0.62659,3192.0,3191.8,6.45762943]
[1738220674233,1.0306,3191.9,3191.8,6.45762943]
[1738220674438,0.62657,3192.1,3191.8,6.45762943]
[1738220674744,0.62661,3191.9,3191.8,3.2078]
[1738220675337,41.91981,3191.9,3191.8,3.2078]
[1738220678445,1.11981,3191.9,3191.8,3.2078]
[1738220679647,0.4932,3191.9,3191.8,3.2078]
[1738220680147,1.11981,3191.9,3191.8,3.2078]
[1738220681150,0.4932,3191.9,3191.8,3.2078]
[1738220681348,0.62661,3191.9,3191.8,3.2078]
[1738220681749,0.5158,3192.0,3191.8,5.95532943]
[1738220682047,0.62656,3192.2,3191.8,6.58194943]
[1738220683952,0.62657,3192.1,3191.8,6.58194943]
[1738220684551,0.4979,3192.3,3191.8,6.58194943]
[1738220684750,0.62656,3192.2,3191.8,6.58194943]
[1738220684953,0.4979,3192.3,3191.8,5.95532943]
[1738220685257,0.62658,3192.1,3191.8,6.58195943]
[1738220685756,0.4979,3192.3,3191.8,5.95532943]
[1738220685957,0.62659,3192.0,3191.8,5.95532943]
[1738220686652,0.4979,3192.3,3191.8,5.95532943]
[1738220686858,0.62661,3191.9,3191.8,5.95532943]
[1738220689258,0.62661,3191.9,3191.8,2.74752943]
[1738220689850,0.62663,3191.8,3191.7,0.00470182]
[1738220690054,1.12163,3191.8,3191.7,0.00470182]
[1738220690559,1.65083,3191.8,3191.7,0.00470182]
[1738220691058,0.62663,3191.8,3191.7,0.00470182]
[1738220691257,0.62659,3192.0,3191.7,0.63135182]
[1738220691453,0.62659,3192.0,3191.8,2.74752943]
[1738220691659,0.62659,3192.0,3191.8,3.28902943]
[1738220691958,0.62661,3191.9,3191.8,3.28902943]
[1738220693467,1.0348,3192.2,3191.8,3.28902943]
[1738220693659,0.62661,3191.9,3191.8,3.91564943]
[1738220693860,0.6266,3192.0,3191.8,3.91564943]
[1738220694056,1.0348,3192.2,3191.8,3.91564943]
[1738220694461,0.62661,3191.9,3191.8,3.28902943]
[1738220694666,0.62661,3191.9,3191.8,0.5415]
[1738220695256,0.62661,3191.9,3191.8,1.16813]
[1738220695460,0.62661,3191.9,3191.8,0.5415]
[1738220696660,0.62661,3191.9,3191.8,1.16813]
[1738220697460,0.62661,3191.9,3191.8,0.5415]
[1738220697865,0.62661,3191.9,3191.8,3.91565943]
[1738220698067,0.62657,3192.1,3192.0,0.62658]
[1738220700278,3.2078,3192.3,3191.8,3.28902943]
[1738220700464,0.6266,3192.0,3191.9,0.62659]
[1738220700770,3.2078,3192.3,3191.8,6.49682943]
[1738220700972,3.83433,3192.3,3192.2,0.62655]
[1738220701471,0.62656,3192.2,3192.1,0.62655]
[1738220703567,40.8,3192.4,3192.3,0.62653]
[1738220703770,0.62648,3192.6,3192.2,0.5031]
[1738220703973,0.62648,3192.6,3192.4,2.74752943]
[1738220704177,0.62648,3192.6,3192.5,0.5131]
[1738220704569,0.00305978,3192.8,3192.5,0.5131]
[1738220704771,41.42645,3192.7,3192.5,1.13958]
[1738220704966,40.8,3192.7,3192.5,0.5131]
[1738220705272,41.42646,3192.7,3192.5,0.5131]
[1738220706975,40.8,3192.7,3192.5,0.5131]
[1738220707177,0.62647,3192.6,3192.5,0.5131]
[1738220707471,41.42646,3192.7,3192.5,0.5131]
[1738220709974,0.62646,3192.7,3192.5,0.5131]
[1738220710370,0.62949978,3192.8,3192.5,1.13958]
[1738220710566,41.42949978,3192.8,3192.5,0.5131]
[1738220710868,0.62645,3192.7,3192.5,0.5131]
[1738220711065,41.42949978,3192.8,3192.5,1.13959]
[1738220711482,41.42949978,3192.8,3192.5,0.5131]
[1738220712377,0.62645,3192.7,3192.5,0.5131]
[1738220712577,40.60559978,3192.8,3192.5,0.5131]
[1738220712774,12.994,3195.2,3192.8,2.74752943]
[1738220712775,0.62632,3193.4,3192.8,2.74752943]
[1738220712977,0.62631,3193.4,3193.3,2.74752943]
[1738220713383,0.5101,3193.8,3193.3,2.74752943]
[1738220713581,0.62631,3193.5,3193.3,2.74752943]
[1738220714077,40.8,3193.7,3193.3,2.74752943]
[1738220714275,0.62629,3193.5,3193.3,2.74752943]
[1738220715478,0.5207,3193.6,3193.3,2.74752943]
[1738220715690,1.14698,3193.6,3193.3,3.37385943]
[1738220715883,0.62629,3193.5,3193.4,0.5]
[1738220717278,40.8,3193.7,3193.4,0.5]
[1738220717491,0.62629,3193.6,3193.4,0.5]
[1738220718090,0.62628,3193.6,3193.4,1.1263]
[1738220718483,0.62628,3193.6,3193.4,0.5]
[1738220718690,40.8,3193.7,3193.4,0.5]
[1738220718691,0.62629,3193.5,3193.4,0.5]
[1738220718884,43.778,3193.7,3193.6,0.62627]
[1738220719087,40.8,3193.7,3193.6,2.74752943]
[1738220719385,40.8,3193.7,3193.6,3.37379943]
[1738220719982,40.8,3193.7,3193.6,6.58159943]
[1738220720679,0.4952,3194.0,3193.6,5.95532943]
[1738220720883,1.0525,3194.1,3193.9,2.74752943]
[1738220721086,1.0525,3194.1,3194.0,0.5083]
[1738220721381,41.3087,3194.1,3194.0,0.5083]
[1738220722393,41.3087,3194.1,3194.0,1.0036]
[1738220722583,41.93488,3194.1,3194.0,1.0036]
[1738220722984,41.3087,3194.1,3194.0,1.0036]
[1738220723594,41.3087,3194.1,3194.0,4.83759]
[1738220723595,40.8,3194.1,3194.0,4.83759]
[1738220724788,0.5422,3194.4,3194.1,0.62616]
[1738220724988,0.5422,3194.4,3194.3,2.74752943]
[1738220725191,41.3422,3194.4,3194.3,2.74752943]
[1738220725688,41.96832,3194.4,3194.3,2.74752943]
[1738220726310,41.3422,3194.4,3194.3,2.74752943]
[1738220726507,41.96832,3194.4,3194.3,2.74752943]
[1738220727405,41.3422,3194.4,3194.3,2.74752943]
[1738220728301,40.8,3194.4,3194.3,3.37366943]
[1738220728500,0.62601,3195.0,3194.6,0.62606]
[1738220728802,0.62601,3195.0,3194.3,2.74752943]
[1738220728803,0.62599,3195.1,3194.8,3.2078]
[1738220729003,40.8,3195.0,3194.8,3.2078]
[1738220729396,0.5088,3194.9,3194.8,3.2078]
[1738220729598,0.62595,3195.3,3194.9,0.62602]
[1738220729894,0.62595,3195.3,3195.2,2.74752943]
[1738220730097,41.42595,3195.3,3195.2,2.74752943]
[1738220730295,40.8,3195.3,3195.2,2.74752943]
[1738220730908,40.8,3195.3,3195.2,3.37348943]
[1738220735711,40.8,3195.3,3195.2,5.95532943]
[1738220735915,0.626,3195.0,3194.9,2.74752943]
[1738220736810,41.426,3195.0,3194.9,2.74752943]
[1738220737506,0.62606,3194.7,3194.6,2.74752943]
[1738220739008,40.8,3195.0,3194.6,2.74752943]
[1738220739408,0.62606,3194.7,3194.6,2.74752943]
[1738220742611,40.8,3195.0,3194.6,2.74752943]
[1738220742812,0.626,3195.0,3194.9,2.74752943]
[1738220744511,41.426,3195.0,3194.9,2.74752943]
[1738220747310,0.62599,3195.1,3194.9,2.74752943]
[1738220749115,0.626,3195.0,3194.9,2.74752943]
[1738220751219,44.5379,3195.3,3194.8,3.2078]
[1738220751416,0.62606,3194.7,3194.6,2.74752943]
[1738220752420,1.0365,3194.8,3194.5,0.00469438]
[1738220752620,0.62608,3194.6,3194.5,0.00469438]
[1738220765229,41.42608,3194.6,3194.5,0.00469438]
[1738220772035,41.42781836,3194.6,3194.5,0.00469438]
[1738220774237,41.42781836,3194.6,3194.5,0.63079438]
[1738220774437,41.42781836,3194.6,3194.5,0.00469438]
[1738220774746,41.42781836,3194.6,3194.5,0.63079438]
[1738220775535,41.42781836,3194.6,3194.5,1.15369438]
[1738220775733,40.80173836,3194.6,3194.5,1.15369438]
[1738220775934,0.00173836,3194.6,3194.5,1.15369438]
[1738220779050,0.00173836,3194.6,3194.5,0.52759438]
[1738220779236,0.62781836,3194.6,3194.5,0.52759438]
[1738220779831,0.00173836,3194.6,3194.5,0.52759438]
[1738220780232,0.00173836,3194.6,3194.5,1.15369438]
[1738220781634,0.00173836,3194.6,3194.5,0.52759438]
[1738220781938,0.00173836,3194.6,3194.5,1.15369438]
[1738220784739,0.00173836,3194.6,3194.5,0.52759438]
[1738220785344,0.00173836,3194.6,3194.5,1.15369438]
[1738220785542,0.00173836,3194.6,3194.5,0.52759438]
[1738220785745,0.62781836,3194.6,3194.5,0.52759438]
[1738220785945,0.00173836,3194.6,3194.5,0.52759438]
[1738220786535,0.62781836,3194.6,3194.5,0.52759438]
[1738220788551,0.62781836,3194.6,3194.5,1.29908537]
[1738220790553,0.62781836,3194.6,3194.5,0.00469438]
[1738220792159,2.17011836,3194.6,3194.5,0.00469438]
[1738220794651,1.54403836,3194.6,3193.9,3.2078]
[1738220794855,0.6262,3194.0,3193.9,3.2078]
[1738220796263,41.4262,3194.0,3193.9,3.2078]
[1738220797566,40.8,3194.0,3193.6,1.03129438]
[1738220797767,0.62626,3193.7,3193.6,0.00469438]
[1738220798263,0.62624,3193.8,3193.7,0.62624]
[1738220798765,0.62624,3193.8,3193.6,0.00469438]
[1738220799065,0.62626,3193.7,3193.6,0.63096438]
[1738220799252,0.62626,3193.7,3193.6,3.36564472]
[1738220799456,0.62626,3193.7,3193.6,2.73937472]
[1738220799769,0.62626,3193.7,3193.6,3.36564472]
[1738220800869,40.8,3194.0,3193.6,3.36564472]
[1738220801461,0.62626,3193.7,3193.6,3.36564472]
[1738220802260,40.8,3194.0,3193.6,3.36564472]
[1738220802570,0.62625,3193.7,3193.6,3.36564472]
[1738220802767,0.62625,3193.7,3193.6,2.73937472]
[1738220803866,0.511,3193.9,3193.6,2.73937472]
[1738220804066,0.62625,3193.7,3193.6,2.73937472]
[1738220806776,0.62625,3193.7,3193.6,0.00469438]
[1738220812173,3.83405,3193.7,3193.6,0.00469438]
[1738220820172,0.62625,3193.7,3193.6,0.00469438]
[1738220820678,0.62625,3193.7,3193.6,1.15246438]
[1738220820879,0.62625,3193.7,3193.6,0.52619438]
[1738220821485,3.83405,3193.7,3193.6,0.00469438]
[1738220822778,0.62625,3193.7,3193.6,0.00469438]
[1738220822973,0.62624,3193.8,3193.7,0.62624]
[1738220823287,0.62624,3193.8,3193.7,1.92139336]
[1738220823781,0.62623,3193.9,3193.8,0.62622]
[1738220824979,41.4262,3194.0,3193.9,0.62622]
[1738220825175,40.8,3194.0,3193.9,0.62622]
[1738220825881,40.8,3194.0,3193.9,3.36145925]
[1738220826875,0.00466961,3194.3,3193.9,2.73523925]
[1738220827078,0.63081961,3194.3,3194.1,0.62617]
[1738220827278,0.62616,3194.2,3194.1,0.62617]
[1738220827480,41.42616,3194.2,3194.1,0.62617]
[1738220827680,40.8,3194.2,3194.1,0.62617]
[1738220827883,41.42616,3194.2,3194.1,0.62617]
[1738220828289,40.8,3194.2,3194.1,0.62617]
[1738220829489,0.00466961,3194.3,3194.2,0.62616]
[1738220829784,0.00466961,3194.3,3194.2,3.83396]
[1738220830287,0.00173836,3194.6,3194.5,0.6261]
[1738220830477,0.00173836,3194.6,3194.5,3.36133925]
[1738220830986,40.80173836,3194.6,3194.5,3.36133925]
[1738220832088,0.00173836,3194.6,3194.5,3.36133925]
[1738220832986,40.8,3194.9,3194.8,0.62604]
[1738220833184,40.8,3194.9,3194.8,6.56907925]
[1738220833486,0.62596,3195.2,3194.8,5.94303925]
[1738220833686,8.15564016,3195.4,3195.1,3.36121925]
[1738220833876,0.62594,3195.3,3195.1,2.73523925]
[1738220834079,41.42594,3195.3,3195.1,2.73523925]
[1738220834281,41.42594,3195.3,3195.1,3.36121925]
[1738220834483,40.8,3195.3,3195.2,0.62596]
[1738220835485,3.2078,3195.9,3195.2,0.62596]
[1738220835689,0.6259,3195.5,3195.2,0.62596]
[1738220835885,3.2078,3195.9,3195.2,0.00469438]
[1738220836186,3.2078,3195.9,3195.4,2.73523925]
[1738220836187,0.62589,3195.6,3195.4,2.73523925]
[1738220836397,0.62587,3195.7,3195.5,0.5191]
[1738220836582,0.62588,3195.6,3195.5,0.5191]
[1738220837589,40.8,3195.8,3195.5,0.5191]
[1738220837793,40.8,3195.8,3195.5,1.145]
[1738220837989,41.42585,3195.8,3195.5,1.6584]
[1738220838288,40.8,3195.8,3195.5,1.6584]
[1738220838497,0.62587,3195.7,3195.5,1.6584]
[1738220840091,0.62586,3195.7,3195.5,1.0325]
[1738220840287,0.62586,3195.7,3195.6,0.5425]
[1738220842492,0.62594,3195.3,3195.2,3.21249438]
[1738220844095,0.62594,3195.3,3195.2,0.00469438]
[1738220844601,0.5072,3195.6,3195.2,0.00469438]
[1738220844791,0.62588,3195.7,3195.4,3.36114925]
[1738220844986,0.62588,3195.7,3195.5,1.1366]
[1738220845192,0.62587,3195.7,3195.5,1.1366]
[1738220845396,0.62588,3195.6,3195.5,0.5107]
[1738220846593,1.12467,3195.7,3195.6,0.62588]
[1738220846792,40.8,3195.8,3195.5,0.5107]
[1738220847097,0.62587,3195.7,3195.6,0.62587]
[1738220847299,40.8,3195.8,3195.5,0.5107]
[1738220847900,0.62588,3195.6,3195.5,0.5107]
[1738220848201,0.62587,3195.7,3195.5,1.1366]
[1738220848801,0.62588,3195.6,3195.5,0.5107]
[1738220848992,40.8,3195.8,3195.5,0.5107]
[1738220849298,0.62587,3195.7,3195.5,1.1366]
[1738220849496,0.62587,3195.7,3195.5,0.5107]
[1738220849699,40.8,3195.8,3195.5,0.5107]
[1738220849902,0.62588,3195.7,3195.5,0.5107]
[1738220850401,0.62588,3195.6,3195.5,0.5107]
[1738220850905,0.62588,3195.7,3195.5,0.5107]
[1738220851206,0.62588,3195.7,3195.5,1.13659]
[1738220851501,40.8,3195.8,3195.5,1.13659]
[1738220851905,0.62587,3195.7,3195.5,0.5107]
[1738220852104,0.62587,3195.7,3195.5,1.1366]
[1738220853891,40.8,3195.8,3195.5,0.5107]
[1738220854097,40.8,3195.8,3195.6,0.62587]
[1738220854697,40.8,3195.8,3195.6,0.62588]
[1738220854897,0.5056,3195.9,3195.7,3.36109925]
[1738220855102,1.13143,3195.9,3195.7,3.36109925]
[1738220855504,40.8,3195.8,3195.7,3.36109925]
[1738220857507,0.4988,3196.1,3195.7,2.73523925]
[1738220857704,0.4988,3196.1,3196.0,3.36103925]
[1738220857907,41.2988,3196.1,3196.0,3.36103925]
[1738220858110,40.8,3196.1,3196.0,3.36103925]
[1738220858409,40.8,3196.1,3196.0,2.73523925]
[1738220858602,41.42578,3196.1,3196.0,2.73523925]
[1738220864014,40.8,3196.1,3195.7,2.73523925]
[1738220864214,0.62586,3195.8,3195.7,2.73523925]
[1738220864613,0.62567,3196.7,3196.1,0.62578]
[1738220864911,1.15514,3196.4,3196.3,2.73523925]
[1738220865115,41.95514,3196.4,3196.3,2.73523925]
[1738220866621,0.62574,3196.3,3196.2,4.2355]
[1738220866813,1.14794,3196.3,3196.2,4.2355]
[1738220867113,1.14794,3196.3,3196.2,3.2078]
[1738220869917,41.42574,3196.4,3196.2,3.83356]
[1738220870110,0.62574,3196.3,3196.2,3.83356]
[1738220870316,41.42574,3196.4,3196.2,3.83356]
[1738220870923,0.62574,3196.3,3196.2,3.2078]
[1738220871916,0.62574,3196.3,3196.2,3.83356]
[1738220872911,0.62574,3196.3,3196.2,3.2078]
[1738220873823,0.62574,3196.3,3196.2,3.83356]
[1738220875317,40.8,3196.4,3196.2,3.2078]
[1738220875518,0.62567,3196.7,3196.5,0.62569]
[1738220875718,0.62567,3196.7,3196.6,0.62569]
[1738220875937,41.42567,3196.7,3196.6,0.62569]
[1738220876223,40.8,3196.7,3196.6,0.62569]
[1738220876424,41.42567,3196.7,3196.6,0.62569]
[1738220877227,0.62569,3196.6,3196.4,0.62573]
[1738220877428,0.62572,3196.5,3196.4,0.62573]
[1738220877818,40.8,3196.7,3196.3,3.26333925]
[1738220878019,0.6257,3196.6,3196.5,0.62569]
[1738220878625,40.8,3196.7,3196.6,0.62569]
[1738220878927,40.8,3196.7,3196.6,6.56872925]
[1738220881520,0.6256,3197.1,3196.6,5.94303925]
[1738220881734,0.6256,3197.1,3196.9,2.73523925]
[1738220882231,41.42561,3197.0,3196.9,3.24143925]
[1738220883540,40.8,3197.0,3196.7,0.5329]
[1738220883733,40.8,3197.0,3196.6,5.94303925]
[1738220884034,0.62567,3196.7,3196.6,2.73523925]
[1738220887726,0.62567,3196.7,3196.1,3.2078]
[1738220887727,7.73523925,3196.7,3195.7,2.98832633]
[1738220887934,0.62584,3195.8,3195.7,2.73523925]
[1738220888733,0.5126,3196.2,3195.7,2.73523925]
[1738220888932,0.62583,3195.9,3195.7,3.36109925]
[1738220889437,0.62584,3195.8,3195.7,2.73523925]
[1738220891438,0.62583,3195.9,3195.7,3.36109925]
[1738220891943,0.62583,3195.9,3195.7,2.73523925]
[1738220892138,0.62583,3195.9,3195.7,3.36109925]
[1738220893241,0.62584,3195.8,3195.7,2.73523925]
[1738220894233,0.62583,3195.9,3195.7,2.73523925]
[1738220894634,0.5363,3196.0,3195.7,2.73523925]
[1738220894834,0.62582,3195.9,3195.7,2.73523925]
[1738220895040,0.5363,3196.0,3195.7,2.73523925]
[1738220895239,0.62584,3195.8,3195.7,2.73523925]
[1738220895640,0.62588,3195.6,3195.5,3.7097]
[1738220897437,1.14498,3195.7,3195.5,3.7097]
[1738220897632,0.62588,3195.6,3195.5,3.7097]
[1738220897838,0.5191,3195.7,3195.4,2.73523925]
[1738220898044,1.1337,3195.5,3195.4,2.73523925]
[1738220899544,3.2078,3196.4,3195.4,5.4704785]
[1738220899740,0.62576,3196.2,3196.1,2.73523925]
[1738220900047,40.8,3196.7,3196.2,0.5437]
[1738220900349,0.62574,3196.4,3196.2,1.67866]
[1738220900846,0.62574,3196.4,3196.2,1.0529]
[1738220901047,0.62571,3196.5,3196.4,0.62573]
[1738220901247,0.62571,3196.5,3196.4,3.36096925]
[1738220901542,0.62571,3196.5,3196.4,2.73523925]
[1738220901947,0.62575,3196.3,3196.2,1.67866]
[1738220903546,0.62574,3196.4,3196.3,0.62574]
[1738220904243,0.62575,3196.3,3196.2,1.67865]
[1738220905051,0.62575,3196.3,3196.2,1.0529]
[1738220905251,0.62576,3196.2,3196.1,2.73523925]
[1738220905451,1.72076,3196.2,3196.1,2.73523925]
[1738220908857,0.62578,3196.1,3196.0,3.2078]
[1738220909558,0.62581,3196.0,3195.9,3.2078]
[1738220915360,4.3028,3196.2,3195.6,0.497]
[1738220915555,0.62586,3195.7,3195.6,0.497]
[1738220919568,0.62588,3195.6,3195.5,2.73523925]
[1738220919769,0.5445,3195.9,3195.3,1.019]
[1738220919960,0.62592,3195.4,3195.3,1.019]
[1738220920259,0.5445,3195.9,3195.8,0.62584]
[1738220920460,1.095,3196.2,3196.0,0.6258]
[1738220920665,0.5276,3196.4,3196.1,3.86771925]
[1738220920858,41.42574,3196.4,3196.2,0.4957]
[1738220921067,0.62575,3196.3,3196.2,0.4957]
[1738220921263,0.62575,3196.3,3196.1,3.24193925]
[1738220921264,0.62576,3196.2,3196.1,0.5067]
[1738220937089,0.6258,3196.0,3195.9,1.0349]
[1738220939286,0.6258,3196.0,3195.9,1.66072]
[1738220939686,0.5186,3196.3,3195.9,1.0349]
[1738220939891,0.62579,3196.1,3195.9,1.0349]
[1738220940092,0.6258,3196.0,3195.9,1.66072]
[1738220940391,0.6258,3196.1,3195.9,1.66072]
[1738220940792,0.6258,3196.1,3196.0,0.6258]
[1738220940984,0.62578,3196.2,3196.0,0.6258]
[1738220941183,0.62578,3196.2,3196.0,1.1542]
[1738220941385,0.62576,3196.2,3196.0,1.1542]
[1738220941586,0.62578,3196.1,3196.0,0.5284]
[1738220942689,40.8,3196.4,3196.0,3.26363925]
[1738220942892,0.62578,3196.2,3196.0,3.88942925]
[1738220944792,0.62576,3196.3,3196.2,0.62576]
[1738220944996,41.42573,3196.4,3196.3,0.62575]
[1738220945994,40.8,3196.4,3196.3,0.62575]
[1738220946291,40.8,3196.4,3196.3,3.36098925]
[1738220947089,3.2078,3197.1,3196.3,2.73523925]
[1738220947289,0.62562,3197.0,3196.7,2.73523925]
[1738220947493,1.0297,3197.3,3196.8,1.0619]
[1738220947700,40.8,3197.2,3197.0,2.73523925]
[1738220947893,40.8,3197.2,3197.1,0.62559]
[1738220948292,0.62559,3197.1,3197.0,2.73523925]
[1738220948689,1.12359,3197.1,3197.0,2.73523925]
[1738220958608,0.62563,3196.9,3196.8,0.53899438]